bitfinex/quotes_SOLUSD_20260201
["timestamp","ask_amount","ask_price","bid_price","bid_amount"]
[1769964668432,23.56999762,101.84,101.8,4.26682517]
[1769964669209,23.56999762,101.84,101.8,14.08987538]
[1769964669417,19.13423802,101.85,101.81,4.26682517]
[1769964669611,9.31553289,101.85,101.81,4.26682517]
[1769964669817,19.13339644,101.86,101.81,4.26682517]
[1769964670123,9.31553289,101.86,101.81,4.26682517]
[1769964670309,9.31553289,101.86,101.82,9.82125319]
[1769964670505,23.56761221,101.86,101.81,14.08854399]
[1769964670917,13.75019967,101.84,101.79,14.09042335]
[1769964671129,39.72176548,101.86,101.78,4.26682517]
[1769964671130,13.75019967,101.83,101.78,4.26682517]
[1769964671338,9.31553289,101.82,101.78,4.26682517]
[1769964671910,9.31553289,101.81,101.78,9.82485801]
[1769964672112,9.31553289,101.82,101.78,4.26682517]
[1769964672314,23.5717365,101.82,101.78,14.09155019]
[1769964672536,14.25594075,101.82,101.78,14.09155019]
[1769964672735,23.57147364,101.82,101.78,14.09155019]
[1769964673541,9.31553289,101.81,101.77,14.09247237]
[1769964673918,9.31553289,101.83,101.79,4.26682517]
[1769964674231,28.9305109,101.84,101.79,4.26682517]
[1769964674432,9.31553289,101.83,101.79,4.26682517]
[1769964674633,19.13588562,101.83,101.79,14.09068693]
[1769964674932,23.57001081,101.84,101.79,38.65105631]
[1769964675140,23.569042,101.85,101.8,4.26682517]
[1769964675341,5.36086188,101.86,101.8,4.26682517]
[1769964675342,13.75019967,101.86,101.81,4.26682517]
[1769964675645,9.31553289,101.85,101.81,4.26682517]
[1769964675843,13.75019967,101.86,101.81,4.26682517]
[1769964676220,23.56693127,101.87,101.82,4.26682517]
[1769964676626,23.56693127,101.87,101.83,9.82028871]
[1769964677427,13.75019967,101.87,101.83,9.82028871]
[1769964677839,14.25113643,101.87,101.83,9.82028871]
[1769964678028,4.43466678,101.87,101.83,14.08711388]
[1769964678737,23.56670369,101.87,101.83,9.82028871]
[1769964679050,9.31553289,101.85,101.81,14.08843802]
[1769964679950,9.31553289,101.85,101.82,9.82120142]
[1769964681346,9.31553289,101.84,101.81,14.08874261]
[1769964681548,9.31553289,101.84,101.81,9.82191744]
[1769964681743,9.31553289,101.84,101.8,34.37879362]
[1769964681931,9.31553289,101.84,101.8,9.82267292]
[1769964682131,9.31553289,101.84,101.8,14.08949809]
[1769964682936,9.31553289,101.85,101.81,14.08883169]
[1769964683139,19.13196559,101.87,101.82,4.26682517]
[1769964683441,24.49237319,101.88,101.82,4.26682517]
[1769964683653,13.75019967,101.87,101.82,4.26682517]
[1769964684447,4.43466678,101.87,101.82,4.26682517]
[1769964684647,13.75019967,101.85,101.81,34.37755116]
[1769964684844,13.75019967,101.84,101.8,14.08954608]
[1769964686032,9.31553289,101.84,101.8,14.08954608]
[1769964686239,13.75019967,101.82,101.78,4.26682517]
[1769964686431,9.31553289,101.81,101.78,4.26682517]
[1769964686649,9.31553289,101.8,101.77,9.82581528]
[1769964687147,9.31553289,101.79,101.76,14.09343764]
[1769964687345,9.31553289,101.8,101.76,14.09343764]
[1769964688450,9.31553289,101.8,101.76,38.6610477]
[1769964689135,13.75019967,101.81,101.76,38.6610477]
[1769964689570,19.61626801,101.83,101.77,4.26682517]
[1769964689858,13.75019967,101.82,101.78,4.26682517]
[1769964690354,13.71386477,101.82,101.78,4.26682517]
[1769964690650,13.71386477,101.82,101.78,14.09126595]
[1769964691254,23.53519291,101.82,101.78,14.09126595]
[1769964694060,9.27919799,101.83,101.79,4.26682517]
[1769964694230,28.8931604,101.85,101.8,4.26682517]
[1769964694437,9.27919799,101.84,101.8,4.26682517]
[1769964694752,9.27919799,101.84,101.8,14.08912095]
[1769964694949,23.53336118,101.84,101.8,14.08912095]
[1769964695436,13.71386477,101.84,101.8,14.08912095]
[1769964696942,24.45891659,101.85,101.81,4.26682517]
[1769964697442,23.53142211,101.86,101.81,4.26682517]
[1769964697860,9.27919799,101.85,101.81,4.26682517]
[1769964698350,9.27919799,101.85,101.8,34.38025255]
[1769964698663,13.39742636,101.85,101.8,24.55795677]
[1769964699460,4.11822837,101.85,101.8,33.83715476]
[1769964699646,13.39742636,101.85,101.8,24.55795677]
[1769964699834,4.11822837,101.88,101.81,9.27919799]
[1769964700040,23.21311544,101.88,101.82,9.27919799]
[1769964700452,23.21311544,101.88,101.83,4.08913595]
[1769964700840,13.39742636,101.87,101.83,4.08913595]
[1769964701463,13.39742636,101.87,101.84,9.81932443]
[1769964701671,4.11822837,101.84,101.81,9.82175932]
[1769964701842,13.39742636,101.84,101.81,9.82175932]
[1769964703562,13.39742636,101.83,101.8,9.8226455]
[1769964703753,4.11822837,101.83,101.8,9.8226455]
[1769964703950,23.21629329,101.85,101.8,13.91178145]
[1769964704146,13.39742636,101.85,101.81,4.08913595]
[1769964704346,4.11822837,101.84,101.8,38.46973822]
[1769964705274,4.43636478,101.8,101.77,9.82559977]
[1769964705475,13.71556277,101.79,101.76,9.82658933]
[1769964705766,4.43636478,101.78,101.76,9.82658933]
[1769964705973,4.43636478,101.86,101.78,4.41651688]
[1769964706153,13.71556277,101.82,101.76,31.69651688]
[1769964706675,4.43636478,101.81,101.76,31.69651688]
[1769964706878,4.43636478,101.81,101.77,4.41651688]
[1769964707179,4.43636478,101.81,101.78,9.82511298]
[1769964708783,4.43636478,101.78,101.74,4.41651688]
[1769964708966,13.71556277,101.78,101.74,14.2450068]
[1769964709284,4.43636478,101.76,101.73,9.82948065]
[1769964710474,13.71556277,101.76,101.72,9.83055397]
[1769964710684,13.71556277,101.75,101.71,9.83135403]
[1769964710889,4.43636478,101.74,101.7,0.1]
[1769964711097,13.71556277,101.72,101.7,0.1]
[1769964711977,9.27919799,101.73,101.7,0.1]
[1769964712180,13.71556277,101.73,101.7,0.1]
[1769964712489,23.54577134,101.73,101.7,0.1]
[1769964713166,4.43636478,101.73,101.7,0.1]
[1769964713359,9.27919799,101.73,101.7,0.1]
[1769964713572,13.71556277,101.72,101.7,0.1]
[1769964713984,4.43636478,101.72,101.7,0.1]
[1769964714785,4.43636478,101.7,101.67,0.1]
[1769964714986,4.43636478,101.7,101.67,9.93524748]
[1769964715185,9.27919799,101.69,101.67,0.1]
[1769964715382,13.71556277,101.69,101.67,0.1]
[1769964715884,9.27919799,101.68,101.67,0.1]
[1769964716068,13.71556277,101.69,101.67,0.1]
[1769964716970,4.43636478,101.69,101.67,0.1]
[1769964717791,13.71556277,101.69,101.67,0.1]
[1769964718085,23.54955093,101.69,101.67,0.1]
[1769964718282,13.71556277,101.69,101.67,0.1]
[1769964718878,4.43636478,101.69,101.67,0.1]
[1769964719073,23.54953135,101.69,101.67,0.1]
[1769964719591,4.43636478,101.69,101.67,0.1]
[1769964719787,14.27034061,101.69,101.67,0.1]
[1769964719993,9.27919799,101.68,101.64,14.25507132]
[1769964720186,13.71556277,101.68,101.64,14.25507132]
[1769964720387,4.43636478,101.68,101.64,23.53426931]
[1769964720591,39.21905783,101.72,101.67,4.41651688]
[1769964720885,23.54688688,101.72,101.68,9.83466814]
[1769964721474,4.43636478,101.75,101.7,4.41651688]
[1769964721679,4.43636478,101.74,101.7,13.69571487]
[1769964721880,13.71556277,101.74,101.7,4.41651688]
[1769964722291,4.43636478,101.74,101.7,13.69571487]
[1769964722974,14.26558693,101.74,101.7,9.83273113]
[1769964723175,14.26558693,101.74,101.7,23.528446]
[1769964723376,13.71556277,101.72,101.67,13.69571487]
[1769964723682,4.43636478,101.7,101.65,13.69571487]
[1769964723889,4.43636478,101.7,101.66,4.41651688]
[1769964724068,9.27919799,101.7,101.65,9.8374592]
[1769964724271,4.43636478,101.69,101.65,19.11665719]
[1769964724795,4.43636478,101.69,101.65,23.53317407]
[1769964725293,13.71556277,101.68,101.64,9.8381595]
[1769964725595,23.54941158,101.69,101.65,14.2539559]
[1769964725791,9.83329429,101.7,101.65,23.53315389]
[1769964725985,4.43636478,101.77,101.69,13.69571487]
[1769964726187,13.71556277,101.75,101.71,9.27919799]
[1769964726391,13.71556277,101.75,101.71,13.69571487]
[1769964726392,4.43636478,101.75,101.71,13.69571487]
[1769964726589,13.71556277,101.75,101.71,4.41651688]
[1769964726794,9.27919799,101.74,101.69,13.69571487]
[1769964726992,13.71556277,101.74,101.69,13.69571487]
[1769964727182,13.71556277,101.73,101.69,4.41651688]
[1769964727374,23.54636452,101.73,101.69,4.41651688]
[1769964727580,23.54636452,101.73,101.68,9.27919799]
[1769964727581,4.15791775,101.71,101.67,23.40187114]
[1769964727781,4.15791775,101.72,101.68,13.5665985]
[1769964727996,13.43711574,101.72,101.68,9.83430921]
[1769964728806,55.94739691,101.74,101.69,19.11289032]
[1769964729104,13.98689399,101.74,101.7,4.28740051]
[1769964729284,23.26609198,101.74,101.7,4.28740051]
[1769964729478,4.15791775,101.74,101.7,23.39918956]
[1769964729678,23.26631018,101.74,101.7,9.83259106]
[1769964729996,4.15791775,101.71,101.66,9.83622801]
[1769964730198,4.15791775,101.68,101.63,38.16417284]
[1769964730499,4.15791775,101.68,101.64,23.40478687]
[1769964730700,4.15791775,101.68,101.65,9.83745609]
[1769964730896,13.43711574,101.7,101.65,23.40405459]
[1769964731097,13.43711574,101.71,101.67,4.28740051]
[1769964731276,4.15791775,101.7,101.66,4.28740051]
[1769964731480,4.15791775,101.7,101.66,14.12407825]
[1769964731481,13.99110739,101.7,101.66,14.12407825]
[1769964731698,9.27919799,101.71,101.66,23.40327624]
[1769964731699,23.26939007,101.71,101.66,23.40327624]
[1769964732000,4.15791775,101.71,101.67,4.28740051]
[1769964732201,28.62837273,101.73,101.68,13.5665985]
[1769964732589,13.98831286,101.73,101.68,13.5665985]
[1769964733400,23.26751085,101.73,101.69,9.83380863]
[1769964733803,4.15791775,101.72,101.65,28.879748]
[1769964734004,13.43711574,101.7,101.65,14.12451789]
[1769964734188,13.43711574,101.7,101.65,14.12440757]
[1769964734382,13.43711574,101.69,101.65,14.12440757]
[1769964734587,4.15791775,101.69,101.65,14.12440757]
[1769964734893,13.43711574,101.69,101.65,14.12440757]
[1769964735501,4.15791775,101.68,101.62,24.59945731]
[1769964735692,19.113092,101.69,101.62,9.83989982]
[1769964735693,4.15791775,101.66,101.62,9.83989982]
[1769964735897,13.43711574,101.64,101.59,4.28740051]
[1769964736096,13.43711574,101.64,101.59,14.13047561]
[1769964736408,13.43711574,101.63,101.57,13.9828395]
[1769964736583,13.43711574,101.63,101.58,13.5665985]
[1769964737105,13.43711574,101.62,101.57,19.54037255]
[1769964737290,13.43711574,101.63,101.58,13.5665985]
[1769964737494,23.27823255,101.62,101.58,9.84415676]
[1769964737693,23.27823255,101.62,101.57,14.54882094]
[1769964737903,13.43711574,101.61,101.57,14.54882094]
[1769964738103,23.27711879,101.63,101.58,13.5665985]
[1769964738415,9.27919799,101.61,101.57,14.54882094]
[1769964738823,9.27919799,101.61,101.55,1.77781108]
[1769964738824,4.15791775,101.6,101.55,1.77781108]
[1769964738997,13.43711574,101.57,101.54,9.84830995]
[1769964739315,13.43711574,101.57,101.52,13.5665985]
[1769964739612,13.43802931,101.52,101.49,14.24024426]
[1769964739795,13.43802931,101.52,101.5,4.28740051]
[1769964740109,9.27919799,101.51,101.45,14.14379191]
[1769964740300,9.27919799,101.48,101.45,14.14379191]
[1769964740603,9.27919799,101.48,101.45,9.8563914]
[1769964741004,40.75802931,101.52,101.45,9.8563914]
[1769964741210,36.59919799,101.52,101.46,4.28740051]
[1769964741401,9.27919799,101.52,101.46,4.28740051]
[1769964741611,9.27919799,101.53,101.48,38.77695509]
[1769964741792,9.27919799,101.52,101.48,14.14155896]
[1769964741992,9.27919799,101.51,101.48,4.28740051]
[1769964742195,13.43802931,101.5,101.48,4.28740051]
[1769964743207,9.27919799,101.52,101.48,4.28740051]
[1769964743917,9.27919799,101.52,101.49,4.28740051]
[1769964744293,9.27919799,101.51,101.48,14.14097445]
[1769964744795,9.27919799,101.5,101.47,9.85485957]
[1769964744991,9.27919799,101.52,101.49,4.28740051]
[1769964745194,9.27919799,101.53,101.49,4.28740051]
[1769964745429,9.27919799,101.51,101.49,4.28740051]
[1769964745595,13.43711574,101.5,101.46,0.1]
[1769964745791,9.27919799,101.48,101.46,4.38740051]
[1769964745998,9.27919799,101.49,101.46,14.2434628]
[1769964746496,9.27919799,101.48,101.46,0.1]
[1769964747021,9.27919799,101.49,101.46,14.24318395]
[1769964747217,9.27919799,101.5,101.46,14.24318395]
[1769964747395,9.85160066,101.51,101.46,14.24318395]
[1769964747396,9.27919799,101.49,101.46,14.24318395]
[1769964748717,9.27919799,101.51,101.47,4.28740051]
[1769964749090,9.27919799,101.53,101.47,4.28740051]
[1769964749291,9.27919799,101.53,101.48,4.28740051]
[1769964749491,9.27919799,101.51,101.48,4.28740051]
[1769964749810,9.27919799,101.5,101.46,34.59603575]
[1769964750011,9.27919799,101.48,101.46,9.95604873]
[1769964750521,9.34104091,101.48,101.46,0.1]
[1769964750811,9.34104091,101.49,101.46,0.1]
[1769964751608,9.34104091,101.5,101.46,4.38740051]
[1769964752622,9.34104091,101.5,101.46,14.24301847]
[1769964753828,9.34104091,101.5,101.47,4.28740051]
[1769964754199,13.49895866,101.49,101.46,0.1]
[1769964754500,9.34104091,101.48,101.46,0.1]
[1769964754706,4.15791775,101.51,101.46,4.38740051]
[1769964755020,9.34104091,101.51,101.46,4.38740051]
[1769964755219,9.34104091,101.5,101.46,4.38740051]
[1769964755518,9.34104091,101.49,101.46,4.38740051]
[1769964757029,9.34104091,101.49,101.46,14.24334925]
[1769964757328,9.34104091,101.5,101.46,38.88360156]
[1769964757524,9.34104091,101.49,101.46,14.24334925]
[1769964757712,9.34104091,101.5,101.46,14.24334925]
[1769964758226,9.34104091,101.5,101.46,38.88360156]
[1769964758430,9.34104091,101.52,101.49,4.10918688]
[1769964758737,4.27527085,101.55,101.49,4.10918688]
[1769964758738,9.34104091,101.55,101.49,4.10918688]
[1769964758909,9.34104091,101.55,101.48,43.83059549]
[1769964758910,14.24553985,101.58,101.51,4.10918688]
[1769964759222,9.34104091,101.55,101.51,4.10918688]
[1769964759406,13.74171003,101.57,101.51,4.10918688]
[1769964759603,9.34104091,101.56,101.51,4.10918688]
[1769964760425,9.34104091,101.56,101.52,13.95946268]
[1769964760734,24.61114392,101.58,101.53,4.10918688]
[1769964760735,9.34104091,101.58,101.53,4.10918688]
[1769964761029,13.74171003,101.58,101.53,4.10918688]
[1769964761227,13.74171003,101.57,101.52,34.47596531]
[1769964761535,34.45266267,101.59,101.52,13.95946268]
[1769964761536,9.34104091,101.55,101.52,13.95946268]
[1769964761724,9.34104091,101.57,101.53,4.10918688]
[1769964761928,9.34104091,101.56,101.53,4.10918688]
[1769964762123,9.34104091,101.56,101.52,38.58515219]
[1769964762609,9.34104091,101.57,101.53,4.10918688]
[1769964763033,9.34104091,101.58,101.53,4.10918688]
[1769964763329,9.34104091,101.57,101.53,4.10918688]
[1769964763633,13.74171003,101.58,101.53,4.10918688]
[1769964764515,13.74171003,101.57,101.53,4.10918688]
[1769964764920,9.34104091,101.58,101.54,4.44534534]
[1769964765316,13.47215934,101.59,101.54,4.44534534]
[1769964765532,23.31571318,101.59,101.54,4.44534534]
[1769964765717,9.34104091,101.58,101.54,4.44534534]
[1769964765923,13.47215934,101.59,101.54,4.44534534]
[1769964766623,13.47215934,101.59,101.55,14.29271116]
[1769964766811,9.34104091,101.59,101.55,14.29271116]
[1769964767540,9.34104091,101.61,101.56,4.44534534]
[1769964767710,9.34104091,101.62,101.56,4.44534534]
[1769964768614,13.47215934,101.63,101.58,38.90094683]
[1769964768813,23.31201145,101.63,101.59,4.44534534]
[1769964769146,9.34104091,101.63,101.59,4.44534534]
[1769964769342,9.34104091,101.62,101.59,4.44534534]
[1769964769842,9.34104091,101.61,101.58,14.28980291]
[1769964770218,9.34104091,101.62,101.58,14.28980291]
[1769964770741,9.34104091,101.62,101.59,4.44534534]
[1769964771033,19.18170117,101.62,101.59,4.44534534]
[1769964771241,9.34104091,101.61,101.59,4.44534534]
[1769964771550,19.18170117,101.62,101.59,4.44534534]
[1769964772215,23.31222799,101.63,101.59,4.44534534]
[1769964772937,23.31222799,101.63,101.59,14.28867291]
[1769964773538,9.34104091,101.62,101.59,4.44534534]
[1769964773837,9.34104091,101.62,101.59,14.28864019]
[1769964774634,24.59729281,101.64,101.6,4.44534534]
[1769964774635,9.34104091,101.64,101.6,4.44534534]
[1769964774820,9.34104091,101.66,101.6,4.44534534]
[1769964775144,0.2,101.67,101.62,4.44534534]
[1769964775314,13.67215934,101.67,101.62,4.44534534]
[1769964775732,9.34104091,101.66,101.62,4.44534534]
[1769964775938,9.34104091,101.65,101.62,4.44534534]
[1769964776832,19.37687432,101.67,101.62,4.44534534]
[1769964777135,23.50799275,101.67,101.63,9.83961428]
[1769964777346,9.54104091,101.67,101.64,4.44534534]
[1769964777516,0.2,101.67,101.64,4.44534534]
[1769964778118,9.54104091,101.67,101.64,4.44534534]
[1769964779336,9.54104091,101.67,101.64,14.28346516]
[1769964779931,0.2,101.67,101.64,14.28346516]
[1769964780131,0.2,101.67,101.64,38.88008066]
[1769964780335,1e-08,101.67,101.65,4.44534534]
[1769964780937,1e-08,101.67,101.66,4.44534534]
[1769964781433,1e-08,101.67,101.66,14.28205594]
[1769964782132,1e-08,101.67,101.65,14.28278586]
[1769964782436,9.34104092,101.67,101.65,14.28278586]
[1769964782627,1e-08,101.67,101.65,14.28278586]
[1769964782832,13.47215934,101.66,101.62,29.0460628]
[1769964783056,13.47215934,101.66,101.63,9.8391088]
[1769964783257,9.34104091,101.66,101.63,9.8391088]
[1769964783462,9.34104091,101.66,101.63,14.28445414]
[1769964783754,9.34104091,101.65,101.63,4.44534534]
[1769964783967,9.34104091,101.64,101.61,14.28645062]
[1769964784149,9.34104091,101.63,101.59,4.44534534]
[1769964784345,9.34104091,101.62,101.59,14.28837561]
[1769964786445,9.34104091,101.62,101.59,9.84303027]
[1769964787543,9.34104091,101.61,101.59,9.84303027]
[1769964788780,9.34104091,101.62,101.59,13.96247535]
[1769964788955,9.34104091,101.63,101.6,4.11944508]
[1769964789450,9.34104091,101.62,101.59,9.84303027]
[1769964789652,9.34104091,101.61,101.59,13.96247535]
[1769964789851,9.34104091,101.62,101.59,13.96247535]
[1769964790854,9.34104091,101.61,101.59,13.96247535]
[1769964791056,9.34104091,101.61,101.57,28.73099341]
[1769964791275,13.74904673,101.61,101.59,9.84339187]
[1769964791451,37.1088677,101.65,101.6,4.11944508]
[1769964791651,9.34104091,101.63,101.6,4.11944508]
[1769964791853,13.74904673,101.61,101.58,9.84412407]
[1769964792053,9.34104091,101.6,101.58,9.84412407]
[1769964792358,9.34104091,101.61,101.59,9.84348853]
[1769964792666,9.34104091,101.62,101.59,13.96293361]
[1769964792865,9.34104091,101.61,101.59,9.84348853]
[1769964793458,9.34104091,101.6,101.58,9.84396008]
[1769964793770,9.34104091,101.6,101.56,28.73362783]
[1769964793969,4.40800582,101.61,101.58,9.84445674]
[1769964794169,9.34104091,101.6,101.57,13.96436238]
[1769964794467,9.34104091,101.59,101.57,13.96436238]
[1769964794855,9.34104091,101.6,101.58,9.84442135]
[1769964795759,9.34104091,101.59,101.57,13.9644548]
[1769964797476,9.34104091,101.6,101.57,13.9644548]
[1769964798277,9.34104091,101.59,101.57,13.9644548]
[1769964799082,9.34104091,101.58,101.56,9.84614669]
[1769964800683,9.34104091,101.6,101.57,4.11944508]
[1769964800879,13.74904673,101.6,101.56,38.58158231]
[1769964801573,9.34104091,101.62,101.57,4.11944508]
[1769964801975,9.34104091,101.62,101.58,13.96390265]
[1769964802360,9.34104091,101.6,101.58,4.11944508]
[1769964802562,9.34104091,101.6,101.57,9.84496574]
[1769964802763,9.34104091,101.59,101.57,9.84496574]
[1769964803463,9.34104091,101.58,101.55,4.11944508]
[1769964803761,9.34104091,101.57,101.55,4.11944508]
[1769964803960,9.34104091,101.57,101.55,13.96633969]
[1769964804159,9.34104091,101.56,101.54,13.96760074]
[1769964804459,9.34104091,101.55,101.53,13.96858232]
[1769964804665,9.34104091,101.54,101.52,13.96972088]
[1769964804866,9.34104091,101.55,101.52,38.59541039]
[1769964805482,13.74904673,101.56,101.52,38.59541039]
[1769964806175,9.34104091,101.55,101.52,38.59541039]
[1769964806771,9.34104091,101.54,101.52,4.11944508]
[1769964806972,9.34104091,101.54,101.51,4.11944508]
[1769964807369,13.74904673,101.52,101.49,9.85269909]
[1769964807681,9.34104091,101.5,101.48,9.85334395]
[1769964808088,9.34104091,101.5,101.47,28.75678684]
[1769964808089,9.34104091,101.49,101.47,13.97408823]
[1769964808583,9.34104091,101.48,101.46,9.95590736]
[1769964809290,4.40800582,101.52,101.47,9.85512959]
[1769964809478,9.34104091,101.5,101.47,13.97457467]
[1769964809683,9.34104091,101.49,101.47,9.85512959]
[1769964810469,9.33916981,101.49,101.47,9.85512959]
[1769964810673,13.74717563,101.5,101.47,9.85512959]
[1769964811392,9.33916981,101.49,101.47,9.85512959]
[1769964811891,4.40800582,101.49,101.47,9.85512959]
[1769964812075,9.33916981,101.48,101.46,9.95575535]
[1769964812271,9.33916981,101.47,101.43,4.11944508]
[1769964812590,9.33916981,101.44,101.39,53.53357901]
[1769964812795,9.33916981,101.43,101.4,38.63443299]
[1769964813178,9.33916981,101.43,101.4,9.86193293]
[1769964813376,9.33916981,101.43,101.4,13.98137801]
[1769964813576,4.40800582,101.41,101.39,9.96251881]
[1769964813898,4.40800582,101.41,101.39,0.1]
[1769964813899,13.74717563,101.41,101.39,0.1]
[1769964814099,13.74717563,101.41,101.39,9.96281265]
[1769964814279,13.74717563,101.43,101.39,14.08225773]
[1769964814600,9.33916981,101.42,101.39,9.96281265]
[1769964814798,9.33916981,101.44,101.4,4.11944508]
[1769964815092,27.36,101.46,101.41,4.11944508]
[1769964815093,9.33916981,101.46,101.41,4.11944508]
[1769964815699,9.33916981,101.43,101.39,14.08225773]
[1769964815991,9.33916981,101.42,101.39,14.08225773]
[1769964816304,13.74717563,101.45,101.4,4.11944508]
[1769964816482,9.33916981,101.43,101.41,9.86096045]
[1769964816680,13.74717563,101.44,101.41,9.86096045]
[1769964817184,9.33916981,101.46,101.42,4.11944508]
[1769964817382,13.74717563,101.46,101.42,4.11944508]
[1769964818270,36.69916981,101.47,101.42,4.11944508]
[1769964818475,41.10813989,101.47,101.43,14.21054795]
[1769964818897,4.40897008,101.46,101.43,9.85901607]
[1769964819778,36.69916981,101.47,101.43,38.85808812]
[1769964819971,9.33916981,101.46,101.43,9.85901607]
[1769964820173,13.74813989,101.46,101.43,9.85901607]
[1769964820399,9.33916981,101.44,101.4,4.35153188]
[1769964820578,9.33916981,101.44,101.41,9.86096045]
[1769964821094,9.33916981,101.44,101.41,14.21249233]
[1769964821497,9.33916981,101.44,101.41,9.86096045]
[1769964821703,9.33916981,101.42,101.39,14.31379615]
[1769964821907,9.33916981,101.41,101.39,0.1]
[1769964822098,9.33916981,101.41,101.39,9.96276745]
[1769964822398,4.40897008,101.41,101.39,0.1]
[1769964822711,13.74813989,101.41,101.39,0.1]
[1769964823004,13.74813989,101.42,101.39,0.1]
[1769964823297,13.74813989,101.44,101.39,4.45153188]
[1769964823495,9.85632066,101.46,101.4,4.35153188]
[1769964823496,13.74813989,101.46,101.4,4.35153188]
[1769964824176,41.12813989,101.47,101.42,4.35153188]
[1769964824378,13.74813989,101.46,101.42,4.35153188]
[1769964824577,27.38,101.47,101.42,9.85930535]
[1769964824578,13.74813989,101.45,101.42,9.85930535]
[1769964825094,13.74813989,101.45,101.41,14.24122804]
[1769964825301,13.5793829,101.44,101.41,9.86056573]
[1769964825505,13.5793829,101.44,101.42,9.859825]
[1769964826104,13.5793829,101.44,101.41,9.86054776]
[1769964826399,9.33916981,101.43,101.4,14.24217831]
[1769964827102,13.5793829,101.44,101.4,14.24217831]
[1769964827482,13.5793829,101.44,101.4,38.89701065]
[1769964828098,9.33916981,101.44,101.41,4.38066231]
[1769964828297,14.09674584,101.46,101.41,4.38066231]
[1769964828298,9.33916981,101.45,101.41,4.38066231]
[1769964828704,13.5793829,101.46,101.42,14.24065047]
[1769964828891,4.24021309,101.46,101.42,14.24065047]
[1769964829088,13.5793829,101.45,101.41,24.65176597]
[1769964829294,9.33916981,101.44,101.41,14.24115589]
[1769964829607,13.5793829,101.45,101.41,14.24115589]
[1769964830108,13.5793829,101.45,101.41,38.89355703]
[1769964830292,9.33916981,101.46,101.42,4.38066231]
[1769964830605,9.33916981,101.46,101.43,9.85901607]
[1769964831906,4.24021309,101.47,101.43,38.88721855]
[1769964832092,13.5793829,101.46,101.43,9.85901607]
[1769964832989,13.5793829,101.45,101.42,9.85959815]
[1769964834004,4.24021309,101.45,101.42,38.89023088]
[1769964834623,9.33916981,101.47,101.43,4.38066231]
[1769964834788,13.5793829,101.48,101.43,4.38066231]
[1769964834983,9.33916981,101.47,101.43,4.38066231]
[1769964835593,13.5793829,101.47,101.43,4.38066231]
[1769964836711,4.24021309,101.47,101.44,9.85804416]
[1769964837012,13.5793829,101.47,101.44,9.85804416]
[1769964837192,9.33916981,101.47,101.44,14.23870647]
[1769964837395,13.5793829,101.48,101.44,38.88381688]
[1769964837591,4.24021309,101.49,101.45,4.38066231]
[1769964838000,13.5793829,101.49,101.45,4.38066231]
[1769964838510,9.33916981,101.48,101.45,4.38066231]
[1769964838914,9.33916981,101.48,101.45,14.23708962]
[1769964840101,4.24021309,101.48,101.44,29.02577272]
[1769964840604,4.24021309,101.5,101.45,4.38066231]
[1769964840806,4.24021309,101.49,101.45,4.38066231]
[1769964841015,40.9593829,101.51,101.45,4.38066231]
[1769964841190,4.24021309,101.52,101.47,4.38066231]
[1769964841390,13.5793829,101.53,101.47,4.38066231]
[1769964841591,4.24021309,101.53,101.48,4.38066231]
[1769964841898,13.5793829,101.53,101.48,4.38066231]
[1769964842294,13.5793829,101.53,101.49,9.8531875]
[1769964842592,13.5793829,101.53,101.49,14.23384981]
[1769964842787,9.33916981,101.55,101.5,4.38066231]
[1769964842988,4.24021309,101.55,101.51,4.38066231]
[1769964843207,36.71916981,101.56,101.51,4.38066231]
[1769964843208,13.5793829,101.56,101.51,4.38066231]
[1769964843803,0.2,101.57,101.52,4.38066231]
[1769964844207,0.2,101.57,101.53,38.85323198]
[1769964844510,9.53916981,101.57,101.53,38.85323198]
[1769964844714,13.5793829,101.56,101.53,9.84930562]
[1769964845313,4.24021309,101.55,101.52,9.85000556]
[1769964845493,4.24021309,101.55,101.51,24.62671982]
[1769964845494,4.24021309,101.53,101.49,29.01195863]
[1769964845694,13.5793829,101.53,101.49,29.01195863]
[1769964846008,4.24021309,101.53,101.49,29.01195863]
[1769964846213,9.33916981,101.54,101.5,38.86342092]
[1769964846411,13.5793829,101.56,101.51,4.38066231]
[1769964846913,13.7793829,101.57,101.52,4.38066231]
[1769964847119,4.44021309,101.57,101.52,13.71983212]
[1769964847305,0.2,101.57,101.53,4.38066231]
[1769964848117,0.2,101.57,101.54,13.90642657]
[1769964848315,4.6142924,101.57,101.54,9.84833563]
[1769964848513,13.75346221,101.56,101.53,9.84888158]
[1769964848707,13.75346221,101.55,101.53,9.84919597]
[1769964848900,13.75346221,101.55,101.51,28.6845891]
[1769964849101,10.04588335,101.57,101.51,28.6845891]
[1769964849102,13.95346221,101.57,101.53,13.90731546]
[1769964849301,4.6142924,101.57,101.53,13.90731546]
[1769964849619,13.95346221,101.57,101.53,13.90731546]
[1769964851023,9.33916981,101.56,101.53,13.90731546]
[1769964851209,13.95346221,101.57,101.53,13.90731546]
[1769964851416,9.33916981,101.56,101.53,13.90731546]
[1769964851810,13.95346221,101.57,101.53,38.53057951]